Cogmind - Beta 15 @@@ ROGUE MODE // 2025.05.18 @ 17:29:09 Player: Polariusz Result: Destroyed by as-81925 with Assembled Blade Performance ------------- Evolutions (0) 0 Regions Visited (2) 400 Robots Destroyed (6) 30 Value Destroyed (127) 127 Prototype IDs (2) 40 Alien Tech Used (0) 0 Bonus (0) 0 TOTAL SCORE: 597 Bonus ------- None Cogmind --------- Core Integrity 0/250 Matter 196/300 Energy 100/100 System Corruption 7% Temperature Cool (0) Movement Core (50) Location -10/Mines Parts ------- > --- POWER (1) -------- (None) > --- PROPULSION (2) --- (None) > --- UTILITY (2) ------ (None) > --- WEAPON (2) ------- Shotgun > --- INVENTORY (5) ---- Light Treads Wheel Large Storage Unit Light Assault Rifle Maul Peak State ------------ > --- POWER ------------ Ion Engine > --- PROPULSION ------- Wheel Wheel > --- UTILITY ---------- Small Storage Unit Visual Processing Unit > --- WEAPON ----------- Shotgun Shotgun > --- INVENTORY -------- Ion Engine Light Treads Light Treads Assault Rifle Light Assault Rifle Maul [Rating: 10] Favorites ----------- Power Ion Engine Engine Ion Engine Propulsion Wheel Wheel Wheel Utility Small Storage Unit Storage Small Storage Unit Processor Visual Processing Unit Weapon Shotgun Ballistic Gun Shotgun Build | -11 -10 -10 ------- Run | Yrd Mat Min Slots Evolved . | . . . Power . | . . . Propulsion . | . . . Utility . | . . . Weapon . | . . . Parts Attached 10 | 6 4 . Power 2 | 1 1 . Engine 2 | 1 1 . Core . | . . . Reactor . | . . . Propulsion 2 | 2 . . Treads . | . . . Leg . | . . . Wheel 2 | 2 . . Hover . | . . . Flight . | . . . Utility 2 | 1 1 . Device . | . . . Storage 1 | 1 . . Processor 1 | . 1 . Hackware . | . . . Protection . | . . . Artifact . | . . . Weapon 4 | 2 2 . Energy Gun . | . . . Energy Cannon . | . . . Ballistic Gun 4 | 2 2 . Ballistic Cannon . | . . . Launcher . | . . . Special Weapon . | . . . Impact Weapon . | . . . Slashing Weapon . | . . . Piercing Weapon . | . . . Special Melee Weapon . | . . . Unidentified Prototypes . | . . . Parts Lost 5 | . . 5 Power 1 | . . 1 Propulsion 2 | . . 2 Utility 1 | . . 1 Weapon 1 | . . 1 Highest Loss Streak 5 | . . 5 To Critical Strikes . | . . . Average Backups 6 | 3 6 6 Power . | . 1 . Propulsion 2 | 1 2 2 Utility . | . . 1 Weapon 2 | 1 2 2 Tool/Special . | . . . Unused Backups 6 | . . 6 Power 1 | . . 1 Propulsion 3 | . . 3 Utility 1 | . . 1 Weapon 1 | . . 1 Tool/Special . | . . . Average Slot Usage (%) 86 | . 95 67 Engine 12 | . 14 8 Wheel 23 | . 28 15 Storage 12 | . 14 8 Processor 10 | . 10 11 Ballistic Gun 26 | . 28 22 Peak Build Rating 10 | 6 10 10 Average Rating 7 | 2 9 6 On Entrance 5 | . 6 10 Naked Turns . | . . . Heaviest Build 16 | 13 16 16 Greatest Support 20 | 20 20 20 Greatest Overweight (x) . | . . . Average Overweight (x) . | . . . Largest Inventory Capacity 8 | 8 8 8 Average Capacity 7 | 7 8 6 Most Carried 8 | 6 8 8 Average Carried 6 | 3 6 6 Final Capacity 8 | 8 8 5 Final Carried 8 | 3 8 5 Class Distribution -------------------- 100% | Mutant Dominant Class ---------------- Mutant | -10/Materials Mutant | -10/Mines Resources | -11 -10 -10 ----------- Run | Yrd Mat Min Matter Collected 304 | 210 53 41 Remotely . | . . . Salvage Created 177 | . 69 108 Parts 12 | . 9 3 Haulers Intercepted . | . . . Recyclers Shooed . | . . . Parts Field Recycled . | . . . Retrieved Matter . | . . . Parts Self-Destructed . | . . . Prevented . | . . . Kills | -11 -10 -10 ------- Run | Yrd Mat Min Combat Hostiles Destroyed 10 | . 3 7 Guns 10 | . 3 7 Classes Destroyed 4 | . 2 2 Watcher 1 | . 1 . Swarmer 3 | . 3 . Grunt 2 | . . 2 Assembled 5 | . . 5 Best Kill Streak 4 | . 3 4 Combat Bots Only 4 | . 3 4 Max Kills in Single Turn 3 | . 3 1 Gunslinging 1 | . 1 . Exploded . | . . . Melee . | . . . Uniques/NPCs Destroyed . | . . . Combat | -11 -10 -10 -------- Run | Yrd Mat Min Hostile Shots Fired 65 | . 5 60 Missed 21 | . 2 19 Hits 44 | . 3 41 Melee 13 | . . 13 Projectile 31 | . 3 28 Critical Strikes 3 | . . 3 Part Disruptions 1 | . . 1 Damage Taken 834 | . 28 806 Core 263 | . 9 254 Absorbed by Shields . | . . . Core Remaining (%) 100 | 100 . . Volleys Fired 18 | . 3 15 Largest 2 | . 2 2 Hottest 46 | . 46 46 Shots Fired 31 | . 6 25 Gun 31 | . 6 25 Cannon . | . . . Launcher . | . . . Special . | . . . Kinetic 31 | . 6 25 Thermal . | . . . Explosive . | . . . Electromagnetic . | . . . Robot Hit Streak 4 | . 2 4 Robot Miss Streak 4 | . 3 4 Penetration Max . | . . . Secondary Targets 1 | . 1 . Max Gunslinging Chain 1 | . 1 . Shots Hit Robots 22 | . 4 18 Core Hits 21 | . 5 16 Critical Kills . | . . . Critical Parts Destroyed . | . . . Critical Strikes . | . . . Melee Attacks . | . . . Impact . | . . . Slashing . | . . . Piercing . | . . . Sneak Attacks . | . . . Combat Hostiles . | . . . Follow-up Attacks . | . . . Damage Inflicted 392 | . 63 329 Guns 375 | . 63 312 Cannons . | . . . Explosions . | . . . Melee . | . . . Ramming 17 | . . 17 Kinetic 375 | . 63 312 Thermal . | . . . Explosive . | . . . Electromagnetic . | . . . Impact . | . . . Slashing . | . . . Piercing . | . . . Highest Corruption 7 | . . 7 Average Corruption 5 | . . 5 Corruption Purged . | . . . Corruption Blocked . | . . . Effects 3 | . . 3 Matter Fused 1 | . . 1 Data Loss (major) 2 | . . 2 Overload Shots . | . . . Overflow Damage . | . . . Projectiles . | . . . Explosions . | . . . Melee . | . . . Knockbacks . | . . . Impact . | . . . Kinetic . | . . . Secondary . | . . . Self-Inflicted Damage 8 | . . 8 Shots . | . . . Rammed 2 | . . 2 Targets Rammed 2 | . . 2 Kicked . | . . . Crushed . | . . . Highest Temperature 115 | . 10 115 Average Temperature 57 | . 7 61 Received Heat Transfer 238 | . 6 232 Siege Activations . | . . . Martial Activations . | . . . Shielding Activations . | . . . Robots Disrupted . | . . . Combat Hostiles . | . . . Robots Corrupted . | . . . Combat Hostiles . | . . . Parts Fried . | . . . Impact Corruptions . | . . . Robots Melted . | . . . Combat Hostiles . | . . . Parts Melted . | . . . Heat Transferred . | . . . Parts Sabotaged . | . . . Parts Stolen . | . . . Parts Stripped . | . . . Power Chain Reactions . | . . . Alert | -11 -10 -10 ------- Run | Yrd Mat Min Maximum Alert Level . | . . . Low Security (%) 100 | 100 100 100 Level 1 . | . . . Level 2 . | . . . Level 3 . | . . . Level 4 . | . . . Level 5 . | . . . High Security . | . . . Max Security . | . . . Peak Influence 100 | . 100 87 Initial 34 | . . 34 Average 20 | . 16 36 Influence Increases 200 | . 137 63 Destroy 0b10 Robot/C 100 | . 60 40 Destroy 0b10 Robot/NC 5 | . 5 . Destroy Leader 22 | . 12 10 Successful Hack 13 | . . 13 Lose Combat Pursuer 60 | . 60 . Influence Decreases 200 | . 47 153 Entered New Map 56 | . . 56 Time Decay 94 | . 47 47 Lost Part 50 | . . 50 Squads Dispatched 1 | . 1 . Investigation 1 | . 1 . Extermination . | . . . Reinforcement . | . . . Assault . | . . . Garrison . | . . . Intercept . | . . . Searches Triggered . | . . . Construction Impeded . | . . . Haulers Reinforced . | . . . Active Scanning Responses . | . . . Cargo Convoy Interrupts . | . . . Stealth | -11 -10 -10 --------- Run | Yrd Mat Min Distress Signals . | . . . Communications Jammed . | . . . Distress Signals . | . . . Times Spotted 28 | . 12 16 Peak Tracking Total 11 | . 6 11 Tactical Retreats 4 | . 2 2 Traps | -11 -10 -10 ------- Run | Yrd Mat Min Traps Triggered . | . . . Indirectly . | . . . Trap Hack Attempts . | . . . Triggered . | . . . Disarmed . | . . . Reprogrammed . | . . . Reused . | . . . Traps Extracted . | . . . Installed . | . . . Triggered . | . . . Machines | -11 -10 -10 ---------- Run | Yrd Mat Min Machines Disabled . | . . . Max in Single Turn . | . . . Machines Repaired . | . . . Machines Dismantled . | . . . Machines Sabotaged . | . . . Overloaded Fab Kills . | . . . Hacking | -11 -10 -10 --------- Run | Yrd Mat Min Machines Accessed 2 | . 1 1 Terminals 2 | . 1 1 Fabricators . | . . . Repair Stations . | . . . Recycling Units . | . . . Scanalyzers . | . . . Garrison Access . | . . . Total Hacks 7 | . 3 4 Successful 3 | . 1 2 Failed 3 | . 1 2 Catastrophic 2 | . . 2 Database Lockouts 1 | . 1 . Manual 7 | . 4 3 Terminals 7 | . 3 4 Fabricators . | . . . Repair Stations . | . . . Recycling Units . | . . . Scanalyzers . | . . . Garrison Access . | . . . Terminal Hacks 3 | . 1 2 Prototype ID Bank 1 | . 1 . Branch Access Points 1 | . . 1 Zone Layout 1 | . . 1 Fabricator Hacks . | . . . Repair Station Hacks . | . . . Recycling Unit Hacks . | . . . Scanalyzer . | . . . Garrison Access Hacks . | . . . Unauthorized Hacks . | . . . Terminals . | . . . Fabricators . | . . . Repair Stations . | . . . Recycling Units . | . . . Scanalyzers . | . . . Garrison Access . | . . . Data Cores Recovered . | . . . Used . | . . . Hacking Detections 2 | . 1 1 Full Trace Events 1 | . 1 . Feedback Events . | . . . Feedback Blocked . | . . . Robot Schematics Acquired . | . . . Robots Built . | . . . Authchips . | . . . Time . | . . . Total Robot Build Rating . | . . . Part Schematics Acquired . | . . . Parts Built . | . . . Authchips . | . . . Time . | . . . Total Part Build Rating . | . . . Parts Repaired . | . . . Time . | . . . Parts Recycled . | . . . Recycled Matter . | . . . Retrieved Matter . | . . . Retrieved Components . | . . . Parts Scanalyzed . | . . . Part Schematics Acquired . | . . . Parts Damaged . | . . . Bothacking | -11 -10 -10 ------------ Run | Yrd Mat Min Used RIF Installer . | . . . Robots Hacked . | . . . Non-combat . | . . . Combat . | . . . Robot Hacks Applied . | . . . Relay Couplers Released . | . . . Fabnet Peak Effective % . | . . . Robots Rewired . | . . . Allies Hacked . | . . . Hacks Repelled . | . . . Allies | -11 -10 -10 -------- Run | Yrd Mat Min Total Allies . | . . . Largest Group . | . . . Highest-Rated Group . | . . . Highest-Rated Ally . | . . . Total Orders . | . . . Ally Attacks . | . . . Total Damage . | . . . Kills . | . . . Allies Corrupted . | . . . Allies Melted . | . . . Intel | -11 -10 -10 ------- Run | Yrd Mat Min Active Infowar (turns) 277 | . 182 95 Optics 277 | . 182 95 Robot Analysis Total . | . . . Derelict Logs Recovered . | . . . Drone Launches . | . . . Drone Recoveries . | . . . Exploration | -11 -10 -10 ------------- Run | Yrd Mat Min Turns Passed 407 | 42 245 120 Spaces Moved 407 | 40 279 88 Core 62 | 15 . 47 Treads . | . . . Legs . | . . . Wheels 345 | 25 279 41 Hover . | . . . Flight . | . . . Fastest Speed 50 | 50 80 50 Average Speed 75 | 68 80 63 Slowest Speed 80 | 80 80 80 Overloaded Moves . | . . . Propulsion Burnouts . | . . . Robots Hopped . | . . . Potential Cave-ins . | . . . Cave-ins Triggered . | . . . Exploration Rate (%) 23 | 4 44 22 Regions Visited 2 Branch Regions 1 Pre-discovered Areas . | . . . Known Exits Taken . | . . . Unknown Exits Taken 2 | 1 1 . Scrap Searched 1 | . . 1 Spaces Dug . | . . . Terrain Destroyed . | . . . Melee . | . . . Projectile . | . . . AOE . | . . . Terrain Rammed . | . . . Walls Destroyed . | . . . Machines Disabled . | . . . Actions | -11 -10 -10 --------- Run | Yrd Mat Min Total 474 | 54 293 127 Wait 20 | . . 20 Move 405 | 39 278 88 Hop . | . . . Pick Up 16 | 9 7 . Fast Attach . | . . . Attach 8 | 6 1 1 Detach . | . . . Swap 3 | . 3 . Drop 2 | . 1 1 Fire 18 | . 3 15 Melee . | . . . Ram 2 | . . 2 Kick . | . . . Crush . | . . . Escape Stasis . | . . . Rewire . | . . . Trap . | . . . Miscellaneous . | . . . Route ------- -11/Scrapyard -10/Materials -10/Mines History --------- Turn | Location | Event 7 | -11/Scrapyard | Discovered new exit (range 16) 43 | -11/Scrapyard | Entered Materials 92 | -10/Materials | Discovered new exit (range 12) 114 | -10/Materials | Central database locked down 288 | -10/Materials | Entered Mines 289 | -10/Mines | Assembled infested the area 294 | -10/Mines | Assisted by a Guerilla fighting off Assembled 296 | -10/Mines | Met a Derelict bent on vengeance 302 | -10/Mines | Build established: Mutant 349 | -10/Mines | Core integrity fell below 50% 357 | -10/Mines | Core integrity fell below 20% 408 | -10/Mines | Destroyed by as-81925 with Assembled Blade Last Messages --------------- Wheel destroyed. as-11055 destroyed. Ion Engine destroyed. Assault Rifle destroyed. System corrupted by crushing effect (+4). Dropped Sml. Storage Unit. System corrupted: Matter fused (-9). Slammed into T-07 Excavator. Searching scrap... Found Welding Torch. Found Hover Unit. Found 31 Matter. System corrupted: Substantial component data lost. Visual Processing Unit destroyed. System corrupted by crushing effect (+3). as-91075 destroyed. Acquired 8 matter. System corrupted: Substantial component data lost. Map ----- +----------------------------------------------------+ | | | | | | | | | | | | | | | | | | | | | | | | | ?????????????????????????????????????? | | ?????????????????????????????????????? | | ?????????????????????????????????????? | | ?????????????????????????????????????? | | ?????????????????????????????????????? | | ?????????????????????????????????????? | | ?????????????????????????????????????? | | ?????????????????????????????????????? | | ?????????????????????????????????????? | | ???????????????????????####??????????? | | ??????????????????????## ##?????????? | | ??????????????????????# ########??? | | ??????????????????????# ##?? | | ???????????????????????# @ #?? | | ???????????????????????#a## #?? | | ???????????????????????# ### #?? | | ?????????????????????### #?## ##?? | | ?????????????????????# #??## ##??? | | ????????? ???????????# #???# ###???? | | ???????? ???????????# ###???# #?????? | | #??????# ?????####### #######|#?????? | | ###???" ?????# =% #?????? | | ? #"### ?????# ###############?????? | | ?? ?????# #???????????????????? | | ??? ?????# #???????????????????? | | ???? ?????# #???????????????????? | | ????? ?????# #???????????????????? | | ????## ##???# #???????????????????? | | ?????#% ##????# #???????????????????? | | ?????# #?##### #???????????????????? | | ?????## ### #?????#?????????????? | | ??????# %[= #?????#?????????????? | | ???##?# %! ####????##?????????????? | | ?## ??##%!* ##?????### ?????????????? | | ##"#####"%! ##????### ?????????????? | | % "# ######## ?????????????? | | ## ?????????????? | | % "" ## ?????????????? | +----------------------------------------------------+ Best States ------------- Heat Dissipation 25 Energy Generation 10 Energy Capacity 250 Matter Stores 250 Matter Capacity 300 Sight Range 18 Terrain Scan Density 10 Evasion (%) 50 Item Schematics ----------------- None Robot Schematics ------------------ None Fabricated ------------ Nothing Repaired ---------- Nothing Alien Tech Used ----------------- None Achievements -------------- None Challenges ------------ None Game ------ Seed RefineryHeartWheel Manual? 0 Play Time 00:09:37 Cumulative 41.0 hours Start 2025.05.18 @ 17:22:22 End 2025.05.18 @ 17:29:09 Sessions 1 Manual Loads 0 Difficulty Rogue Special Mode None Game No. 42 Rogue 42 Adventurer 0 Explorer 0 Win Type - Total 1 Types 1/0/0/0/0/0/0/0/0/0 Lore% 22 Gallery% 28 Achievement% 27 Wizard Run 0 Options --------- Layout 1 ASCII 0 Keyboard 0 Movement Numpad Keybinds 0 Fullscreen 1 Font 24/Smallcaps Map View 50x35 Zoom Use 0% Tactical HUD 0 Map Filters NONE Filters NONE Steam 1 RUN: b35069a9-53e7-4010-8f4f-93f0180a29c5